bitfinex/quotes_BTCUSD_20220307
["timestamp","ask_amount","ask_price","bid_price","bid_amount"]
[1646617714076,0.4964,38449.0,38433.0,0.387136]
[1646617714077,0.01310705,38450.0,38433.0,0.69792363]
[1646617714276,0.00012705,38450.0,38444.0,0.296591]
[1646617714472,0.2,38455.0,38443.0,0.05663128]
[1646617714473,0.2,38455.0,38446.0,0.386985]
[1646617714676,0.2,38455.0,38451.0,0.28219466]
[1646617714872,0.15950718,38454.0,38452.0,0.438822]
[1646617715469,0.15950718,38454.0,38452.0,0.11693578]
[1646617715670,0.15950718,38454.0,38452.0,0.0519]
[1646617716475,0.15950718,38454.0,38453.0,0.387136]
[1646617716669,0.15950718,38454.0,38452.0,0.387136]
[1646617716970,0.15950718,38454.0,38451.0,0.13007155]
[1646617717169,0.15950718,38454.0,38451.0,0.18007155]
[1646617717571,0.15950718,38454.0,38452.0,0.387136]
[1646617717818,0.15950718,38454.0,38451.0,0.18007155]
[1646617719518,0.15960683,38454.0,38451.0,0.18007155]
[1646617720121,0.15970915,38454.0,38453.0,0.00013965]
[1646617720620,0.1596095,38454.0,38453.0,0.00013965]
[1646617720820,0.00010232,38454.0,38453.0,0.38727565]
[1646617721019,0.00010232,38454.0,38453.0,0.43727565]
[1646617721219,0.00010232,38454.0,38453.0,0.05013965]
[1646617721421,0.00010232,38454.0,38453.0,0.00013965]
[1646617724671,0.00010232,38454.0,38453.0,0.38727565]
[1646617724874,0.00010232,38454.0,38453.0,0.387136]
[1646617725072,0.00010232,38454.0,38453.0,0.43996771]
[1646617725321,0.00010232,38454.0,38453.0,0.38996771]
[1646617726324,0.00010232,38454.0,38453.0,0.43996771]
[1646617727524,0.00010232,38454.0,38453.0,0.296281]
[1646617729075,0.00010232,38454.0,38453.0,0.348181]
[1646617729276,0.00010232,38454.0,38453.0,0.398181]
[1646617730079,0.00010232,38454.0,38453.0,0.40105982]
[1646617730475,0.00010232,38454.0,38453.0,0.40119947]
[1646617731277,0.00010232,38454.0,38453.0,0.10491847]
[1646617731678,0.00010232,38454.0,38453.0,0.40119947]
[1646617732480,0.00010232,38454.0,38453.0,0.05301847]
[1646617732680,0.00010232,38454.0,38453.0,0.34929947]
[1646617732921,0.00010232,38454.0,38453.0,0.00301847]
[1646617733122,0.00010232,38454.0,38453.0,0.05301847]
[1646617733323,0.00010232,38454.0,38453.0,0.00301847]
[1646617735125,0.00261772,38454.0,38453.0,0.00301847]
[1646617735726,0.00261772,38454.0,38453.0,0.00013965]
[1646617740089,0.00261772,38454.0,38447.0,0.05744]
[1646617740321,0.00261772,38454.0,38447.0,0.06504442]
[1646617740527,0.00261772,38454.0,38448.0,0.296321]
[1646617741121,9.965e-05,38453.0,38448.0,0.296321]
[1646617741523,0.0025154,38452.0,38448.0,0.596321]
[1646617741722,0.0083,38450.0,38448.0,0.596321]
[1646617741921,0.0083,38450.0,38449.0,0.59632]
[1646617742121,0.0083,38450.0,38449.0,0.3]
[1646617742323,0.0083,38450.0,38449.0,0.05]
[1646617742525,0.0083,38450.0,38449.0,0.346319]
[1646617744380,0.0083,38450.0,38449.0,0.296319]
[1646617744569,0.0108154,38450.0,38449.0,0.296319]
[1646617747271,0.0108154,38450.0,38449.0,0.346319]
[1646617747673,0.0108154,38450.0,38446.0,0.11273218]
[1646617747934,0.16704395,38449.0,38442.0,0.0650531]
[1646617748135,0.16704395,38449.0,38448.0,0.296329]
[1646617748332,0.16704395,38449.0,38447.0,0.296337]
[1646617748532,0.0025154,38448.0,38447.0,0.296337]
[1646617748730,0.0025154,38448.0,38447.0,0.346337]
[1646617749129,0.0025154,38448.0,38447.0,0.05]
[1646617749329,0.0025154,38448.0,38442.0,0.296378]
[1646617750332,0.0025154,38448.0,38444.0,0.296365]
[1646617750731,0.0025154,38448.0,38444.0,0.346365]
[1646617751976,0.3025154,38448.0,38444.0,0.05]
[1646617752178,0.3025154,38448.0,38441.0,0.003]
[1646617752179,0.387175,38447.0,38441.0,0.003]
[1646617752376,0.3,38446.0,38441.0,0.003]
[1646617752575,0.00240442,38448.0,38441.0,0.003]
[1646617752576,0.387175,38447.0,38441.0,0.003]
[1646617752775,0.387175,38445.0,38441.0,0.003]
[1646617753081,0.46398797,38444.0,38441.0,0.003]
[1646617753377,0.46398797,38444.0,38434.0,0.296449]
[1646617753979,0.00240442,38445.0,38437.0,0.06933148]
[1646617754177,0.00240442,38445.0,38438.0,0.29642]
[1646617754381,0.00240442,38445.0,38438.0,0.34642]
[1646617755077,0.00240442,38445.0,38443.0,0.24241562]
[1646617755340,0.00240442,38445.0,38444.0,0.296368]
[1646617755538,0.00240442,38445.0,38444.0,0.296367]
[1646617756539,0.00240442,38445.0,38440.0,0.296399]
[1646617756738,0.00240442,38447.0,38440.0,0.446399]
[1646617757339,0.00240442,38447.0,38440.0,0.296399]
[1646617757941,0.00240442,38447.0,38441.0,0.296392]
[1646617758244,0.56400386,38440.0,38439.0,0.296407]
[1646617758944,0.56400386,38440.0,38436.0,0.005]
[1646617758945,0.86400386,38440.0,38436.0,0.005]
[1646617759186,0.21335804,38437.0,38436.0,0.005]
[1646617759381,0.21335804,38437.0,38431.0,0.296478]
[1646617759581,0.3,38436.0,38430.0,0.296496]
[1646617759782,0.21335804,38437.0,38430.0,0.296496]
[1646617760088,0.51335804,38437.0,38430.0,0.296496]
[1646617760282,0.21335804,38437.0,38430.0,0.296496]
[1646617760680,0.17974838,38435.0,38430.0,0.296496]
[1646617762382,0.51335804,38437.0,38429.0,0.13013093]
[1646617762583,0.51335804,38437.0,38430.0,0.296496]
[1646617762820,0.00240442,38436.0,38430.0,0.296496]
[1646617763221,0.2006574,38435.0,38430.0,0.296496]
[1646617764220,0.2006574,38435.0,38427.0,0.7696073]
[1646617764422,0.2006574,38435.0,38428.0,0.296515]
[1646617764820,9.538e-05,38434.0,38432.0,0.00014155]
[1646617765022,9.538e-05,38434.0,38433.0,0.296473]
[1646617765223,9.538e-05,38434.0,38432.0,0.00014155]
[1646617765724,9.538e-05,38434.0,38433.0,0.296473]
[1646617766025,0.00240442,38433.0,38432.0,0.00014155]
[1646617766222,0.00240442,38433.0,38432.0,0.29662155]
[1646617766673,0.00240442,38433.0,38432.0,0.29662255]
[1646617766869,0.00240442,38433.0,38432.0,0.00014155]
[1646617767672,0.00240442,38433.0,38432.0,0.29662255]
[1646617774070,0.0022858,38433.0,38432.0,0.29662255]
[1646617775472,0.0022858,38433.0,38432.0,0.59122309]
[1646617782578,0.0022858,38433.0,38432.0,0.29662255]
[1646617785532,0.0022858,38433.0,38432.0,0.91366395]
[1646617789875,0.0022858,38433.0,38432.0,1.16793656]
[1646617794335,0.0022858,38433.0,38432.0,0.91366395]
[1646617796573,0.0021759,38433.0,38432.0,0.91366395]
[1646617809229,0.0021759,38433.0,38432.0,1.17366395]
[1646617811971,0.0021759,38433.0,38432.0,1.11559471]
[1646617815075,0.0021759,38433.0,38432.0,1.11575549]
[1646617822283,0.0021759,38433.0,38432.0,1.1156495]
[1646617823628,0.0021759,38433.0,38432.0,0.55154067]
[1646617827378,0.0021759,38433.0,38432.0,0.79691014]
[1646617827580,0.0021759,38433.0,38432.0,1.56117797]
[1646617827780,0.0021759,38433.0,38432.0,0.99907678]
[1646617828078,0.0021759,38433.0,38432.0,1.05097678]
[1646617828681,0.0021759,38433.0,38432.0,0.60344067]
[1646617828879,0.0021759,38433.0,38432.0,0.92058756]
[1646617830332,0.0021759,38433.0,38432.0,0.60344067]
[1646617830834,0.0021759,38433.0,38432.0,0.9204456]
[1646617834097,0.56278364,38440.0,38433.0,0.05]
[1646617834292,0.56278364,38440.0,38435.0,0.01099604]
[1646617834894,0.86278364,38440.0,38435.0,0.01099604]
[1646617835896,0.56278364,38440.0,38435.0,0.01099604]
[1646617836295,0.77339363,38440.0,38435.0,0.01099604]
[1646617836500,0.56278364,38440.0,38435.0,0.01099604]
[1646617838231,0.56278364,38440.0,38435.0,0.27181749]
[1646617838634,0.56278364,38440.0,38435.0,0.32181749]
[1646617839232,0.56278364,38440.0,38439.0,0.01517028]
[1646617839433,0.56278364,38440.0,38439.0,0.28626536]
[1646617839641,0.94999864,38440.0,38439.0,0.28626536]
[1646617839833,0.56278364,38440.0,38439.0,0.33626536]
[1646617840636,0.86278364,38440.0,38439.0,0.33626536]
[1646617840833,0.56278364,38440.0,38439.0,0.33626536]
[1646617841032,0.86278364,38440.0,38439.0,0.33626536]
[1646617841435,0.56278364,38440.0,38439.0,0.33626536]
[1646617842178,0.86278364,38440.0,38439.0,0.59626536]
[1646617842378,0.56278364,38440.0,38439.0,0.59626536]
[1646617842578,0.86278364,38440.0,38439.0,0.59626536]
[1646617842980,1.46060863,38440.0,38439.0,0.59626536]
[1646617843178,1.07339363,38440.0,38439.0,0.59626536]
[1646617843680,0.77339363,38440.0,38439.0,0.59626536]
[1646617843879,0.56278364,38440.0,38439.0,0.59626536]
[1646617844479,0.77339363,38440.0,38439.0,0.59626536]
[1646617845080,0.77339363,38440.0,38439.0,0.5964228]
[1646617845729,0.56278364,38440.0,38439.0,0.5964228]
[1646617846328,0.56278364,38440.0,38439.0,0.59857528]
[1646617847831,0.77339363,38440.0,38439.0,0.59857528]
[1646617848429,1.46060863,38440.0,38439.0,0.59857528]
[1646617848730,1.46141191,38440.0,38439.0,0.59857528]
[1646617848931,1.24999864,38440.0,38439.0,0.583405]
[1646617849187,1.24999864,38440.0,38439.0,0.533405]
[1646617849386,1.24999864,38440.0,38433.0,0.01107575]
[1646617849387,1.437215,38439.0,38433.0,0.01107575]
[1646617849592,0.387215,38435.0,38434.0,0.26197633]
[1646617849888,0.59859818,38435.0,38434.0,0.26197633]
[1646617850088,0.387215,38435.0,38434.0,0.26197633]
[1646617850491,0.387215,38435.0,38434.0,0.31197633]
[1646617851089,0.387215,38435.0,38434.0,0.05]
[1646617851090,0.687215,38435.0,38434.0,0.05]
[1646617851291,0.387215,38434.0,38429.0,0.01214001]
[1646617851497,0.387215,38434.0,38422.0,7.102e-05]
[1646617851498,0.66164375,38430.0,38422.0,7.102e-05]
[1646617851696,0.387215,38431.0,38422.0,7.102e-05]
[1646617851697,0.687215,38423.0,38422.0,7.102e-05]
[1646617851893,1.437215,38422.0,38419.0,0.00129987]
[1646617852095,0.687215,38420.0,38419.0,0.00129987]
[1646617852295,0.94877866,38420.0,38419.0,0.00129987]
[1646617852495,0.87834668,38420.0,38419.0,0.00129987]
[1646617852694,0.87834668,38420.0,38416.0,0.01114541]
[1646617852695,0.387215,38419.0,38416.0,0.01114541]
[1646617852935,0.387215,38417.0,38416.0,0.01114541]
[1646617853738,0.41156366,38420.0,38411.0,0.27256262]
[1646617853739,0.00756672,38412.0,38411.0,0.001]
[1646617854137,0.00756672,38412.0,38411.0,0.01641221]
[1646617854536,0.00756672,38412.0,38411.0,0.06641221]
[1646617856136,0.00712292,38412.0,38411.0,0.01641221]
[1646617856342,0.387215,38410.0,38405.0,0.001]
[1646617856584,0.387215,38410.0,38402.0,0.001]
[1646617856585,0.15,38407.0,38402.0,0.001]
[1646617856786,0.739115,38406.0,38402.0,0.001]
[1646617857388,0.537215,38404.0,38402.0,0.001]
[1646617857584,1.037215,38402.0,38391.0,0.01618024]
[1646617857885,0.3,38401.0,38394.0,0.01372134]
[1646617858085,0.387215,38400.0,38394.0,0.01372134]
[1646617858283,0.387215,38398.0,38394.0,0.01372134]
[1646617858482,0.387215,38401.0,38394.0,0.01372134]
[1646617858682,0.387215,38401.0,38392.0,0.065143]
[1646617858683,0.387215,38403.0,38397.0,0.065149]
[1646617858885,0.3,38402.0,38398.0,0.14261986]
[1646617859082,0.387215,38401.0,38398.0,0.14261986]
[1646617859582,0.387215,38401.0,38398.0,0.13761986]
[1646617859785,0.81972,38410.0,38402.0,0.07022886]
[1646617859786,0.20037741,38410.0,38402.0,0.07022886]
[1646617859987,0.20037741,38410.0,38403.0,0.07730254]
[1646617860434,0.20037741,38410.0,38403.0,0.12730254]
[1646617860635,0.00013537,38407.0,38404.0,0.0001656]
[1646617860833,0.00013537,38407.0,38404.0,0.0501656]
[1646617861034,0.00013537,38407.0,38404.0,0.0001656]
[1646617861235,0.0015574,38406.0,38404.0,0.0501656]
[1646617861633,0.0015574,38406.0,38404.0,0.0001656]
[1646617862036,0.0015574,38406.0,38404.0,0.0501656]
[1646617862438,0.0015574,38406.0,38404.0,0.0001656]
[1646617862836,0.0015574,38406.0,38404.0,0.0501656]
[1646617863236,0.0015574,38406.0,38404.0,0.0001656]
[1646617863836,0.0015574,38406.0,38404.0,0.2601656]
[1646617864279,0.387215,38405.0,38404.0,0.2601656]
[1646617864579,0.0015574,38406.0,38404.0,0.2601656]
[1646617865781,0.387215,38405.0,38404.0,0.2601656]
[1646617865984,0.687215,38405.0,38404.0,0.2601656]
[1646617866582,0.387215,38405.0,38404.0,0.2601656]
[1646617867934,0.0055574,38406.0,38404.0,0.2601656]
[1646617868430,0.387215,38405.0,38404.0,0.2601656]
[1646617871235,0.0045574,38406.0,38404.0,0.2601656]
[1646617871712,0.0015574,38406.0,38404.0,0.2601656]
[1646617871915,0.387215,38405.0,38404.0,0.2601656]
[1646617872117,0.0015574,38406.0,38404.0,0.2601656]
[1646617874322,0.00013537,38407.0,38405.0,0.3]
[1646617874323,1.277e-05,38407.0,38405.0,0.3]
[1646617874523,1.277e-05,38407.0,38405.0,0.4019]
[1646617874718,0.002,38410.0,38405.0,0.1019]
[1646617875019,0.002,38410.0,38407.0,0.02770277]
[1646617875218,0.002,38410.0,38409.0,0.21105948]
[1646617875453,0.002,38410.0,38409.0,0.26295948]
[1646617875647,0.002,38410.0,38409.0,0.31295948]
[1646617875844,0.00712292,38412.0,38409.0,0.31295948]
[1646617879897,0.00712292,38412.0,38409.0,0.37807048]
[1646617880301,0.3,38420.0,38409.0,0.37807048]
[1646617880502,0.29281122,38423.0,38421.0,0.05979217]
[1646617880704,0.11958433,38418.0,38416.0,0.0519]
[1646617880904,0.11958433,38418.0,38417.0,0.20804467]
[1646617881201,0.11958433,38418.0,38417.0,0.2707225]
[1646617881998,0.11958433,38418.0,38417.0,0.32370562]
[1646617882206,0.11958433,38418.0,38417.0,0.01267783]
[1646617882603,0.11958433,38418.0,38414.0,0.01185673]
[1646617882604,0.50679933,38418.0,38414.0,0.01185673]
[1646617882828,0.11958433,38418.0,38414.0,0.01185673]
[1646617883832,0.11958433,38418.0,38411.0,0.05]
[1646617884029,0.11958433,38418.0,38412.0,0.01168228]
[1646617884229,0.11958433,38418.0,38414.0,0.26]
[1646617884832,0.11958433,38418.0,38414.0,0.43159665]
[1646617885032,0.11958433,38418.0,38415.0,0.06562975]
[1646617885232,0.11958433,38418.0,38417.0,0.00017168]
[1646617886233,0.11958433,38418.0,38417.0,0.00147805]
[1646617886682,0.50679933,38418.0,38417.0,0.00147805]
[1646617887481,0.60679933,38418.0,38417.0,0.00147805]
[1646617890742,0.60679933,38418.0,38417.0,0.16700423]
[1646617890937,0.60679933,38418.0,38417.0,0.21569786]
[1646617891535,0.50679933,38418.0,38417.0,0.21569786]
[1646617891738,0.21958433,38418.0,38417.0,0.21569786]
[1646617891937,0.11958433,38418.0,38417.0,0.21569786]
[1646617892535,0.11958433,38418.0,38417.0,0.05017168]
[1646617892536,0.50679933,38418.0,38417.0,0.05017168]
[1646617892739,0.50679933,38418.0,38417.0,0.00017168]
[1646617893037,0.11958433,38418.0,38417.0,0.00017168]
[1646617893237,0.11958433,38418.0,38415.0,0.065109]
[1646617893437,0.11958433,38418.0,38415.0,0.1204612]
[1646617893637,0.11958433,38418.0,38415.0,0.32838841]
[1646617894886,0.33087909,38418.0,38415.0,0.32838841]
[1646617895285,0.33087909,38418.0,38417.0,0.0001621]
[1646617896085,0.11958433,38418.0,38417.0,0.0001621]
[1646617898439,0.85809409,38418.0,38417.0,0.0001621]
[1646617898639,0.94679933,38418.0,38417.0,0.0001621]
[1646617898837,1.3110283,38418.0,38417.0,0.0001621]
[1646617899041,1.04679933,38418.0,38417.0,0.0001621]
[1646617899237,1.06292278,38418.0,38417.0,0.0001621]
[1646617900538,0.21466618,38415.0,38414.0,0.31015257]
[1646617900740,0.3952978,38411.0,38407.0,0.12]
[1646617900940,0.387215,38410.0,38406.0,0.01560582]
[1646617901242,0.387215,38410.0,38405.0,0.01301]
[1646617901442,0.59835055,38410.0,38405.0,0.01301]
[1646617901884,0.21291601,38409.0,38405.0,0.01301]
[1646617902187,0.21291601,38409.0,38402.0,7.253e-05]
[1646617902188,0.387215,38405.0,38402.0,7.253e-05]
[1646617902385,0.73831535,38403.0,38402.0,7.253e-05]
[1646617902587,0.827215,38403.0,38402.0,7.253e-05]
[1646617902789,1.32511273,38403.0,38402.0,7.253e-05]
[1646617902986,1.11401966,38403.0,38391.0,0.17599458]
[1646617903185,0.487215,38402.0,38391.0,0.17599458]
[1646617903386,0.387215,38400.0,38391.0,0.17599458]
[1646617903586,0.29273667,38397.0,38391.0,0.17599458]
[1646617903786,0.387215,38396.0,38391.0,0.17599458]
[1646617904202,0.387215,38396.0,38391.0,0.22599458]
[1646617904386,0.387215,38396.0,38391.0,0.48599458]
[1646617905438,0.387215,38396.0,38391.0,0.31]
[1646617905439,0.687215,38396.0,38391.0,0.31]
[1646617906841,0.687215,38396.0,38392.0,8.796e-05]
[1646617907841,0.687215,38396.0,38391.0,0.31]
[1646617908041,0.687215,38396.0,38392.0,8.796e-05]
[1646617908641,0.387215,38394.0,38392.0,8.796e-05]
[1646617908841,0.687215,38393.0,38392.0,8.796e-05]
[1646617909084,0.387215,38392.0,38391.0,0.31]
[1646617909283,0.387215,38392.0,38391.0,0.31008796]
[1646617910284,0.387215,38392.0,38391.0,0.31]
[1646617910884,0.527215,38392.0,38391.0,0.31]
[1646617911284,0.527215,38392.0,38391.0,0.30739777]
[1646617911485,0.387215,38392.0,38391.0,0.30739777]
[1646617912590,0.382215,38392.0,38391.0,0.30739777]
[1646617913631,0.35,38389.0,38382.0,0.12034503]
[1646617913836,0.382215,38392.0,38376.0,0.001]
[1646617913837,0.15,38383.0,38376.0,0.001]
[1646617914034,1.05,38386.0,38370.0,0.01305602]
[1646617914035,0.15,38377.0,38370.0,0.01305602]
[1646617914242,0.15,38377.0,38365.0,0.2519999]
[1646617914243,0.387232,38370.0,38365.0,0.2519999]
[1646617914434,0.15,38378.0,38365.0,0.2519999]
[1646617914435,0.677232,38368.0,38365.0,0.2519999]
[1646617914636,0.729132,38368.0,38365.0,0.2519999]
[1646617914933,0.387232,38368.0,38365.0,0.2519999]
[1646617915132,0.387232,38367.0,38365.0,0.2489999]
[1646617915336,0.14,38366.0,38365.0,0.2489999]
[1646617915631,0.3965294,38366.0,38363.0,0.002]
[1646617915831,0.3,38371.0,38363.0,0.002]
[1646617915832,0.39652952,38365.0,38363.0,0.002]
[1646617916431,0.39652952,38365.0,38363.0,0.16499303]
[1646617917090,0.3965294,38365.0,38363.0,0.16499303]
[1646617917392,0.45,38364.0,38362.0,0.001]
[1646617917587,0.69652952,38363.0,38362.0,0.001]
[1646617917789,0.387238,38363.0,38362.0,0.001]
[1646617917988,0.3965294,38363.0,38362.0,0.001]
[1646617918389,0.6965294,38363.0,38362.0,0.001]
[1646617918589,0.6965294,38363.0,38358.0,0.001]
[1646617918792,0.687238,38363.0,38361.0,8.562e-05]
[1646617919091,0.687238,38362.0,38361.0,8.562e-05]
[1646617919790,0.687238,38362.0,38358.0,0.001]
[1646617919791,0.387238,38362.0,38358.0,0.001]
[1646617919993,0.387238,38361.0,38360.0,8.562e-05]
[1646617920464,0.387238,38365.0,38360.0,8.562e-05]
[1646617920661,0.002,38362.0,38360.0,8.562e-05]
[1646617920860,0.387238,38361.0,38360.0,0.2014797]
[1646617921059,0.387238,38361.0,38360.0,0.20139408]
[1646617922060,0.387238,38365.0,38360.0,0.20139408]
[1646617922259,0.3,38364.0,38360.0,0.20139408]
[1646617922460,0.387238,38363.0,38360.0,0.20139408]
[1646617922665,0.387238,38361.0,38360.0,0.20139408]
[1646617924281,0.387238,38361.0,38359.0,7.706e-05]
[1646617924481,0.387238,38361.0,38360.0,0.26]
[1646617924689,0.387238,38361.0,38360.0,0.255]
[1646617924881,0.387238,38361.0,38360.0,0.25]
[1646617925080,0.387238,38361.0,38360.0,0.25015042]
[1646617925480,0.387238,38361.0,38360.0,0.24015042]
[1646617926281,0.387238,38361.0,38360.0,0.00015042]
[1646617926682,0.387238,38361.0,38360.0,0.0030425]
[1646617931700,0.387238,38361.0,38360.0,0.00231948]
[1646617933301,0.527238,38361.0,38360.0,0.00231948]
[1646617933502,0.827238,38361.0,38360.0,0.00231948]
[1646617934300,0.827238,38361.0,38360.0,0.00103646]
[1646617934602,0.827238,38361.0,38358.0,0.001]
[1646617934603,0.00303081,38359.0,38358.0,0.001]
[1646617934802,0.93039936,38359.0,38358.0,0.001]
[1646617935001,1.72409936,38359.0,38358.0,0.001]
[1646617935209,1.92409818,38359.0,38358.0,0.001]
[1646617935439,1.13039818,38359.0,38358.0,0.001]
[1646617935642,1.25751268,38359.0,38358.0,0.001]
[1646617936443,2.20311268,38359.0,38352.0,0.0001]
[1646617936640,0.15,38353.0,38352.0,0.0001]
[1646617936940,1.463258,38352.0,38338.0,0.01302]
[1646617937140,0.387238,38350.0,38338.0,0.01302]
[1646617937340,0.387238,38348.0,38344.0,0.17073278]
[1646617937541,0.15,38351.0,38348.0,0.2141959]
[1646617937742,0.387238,38350.0,38348.0,0.2141959]
[1646617939090,0.387238,38350.0,38344.0,0.17073278]
[1646617939290,0.387238,38350.0,38347.0,8.451e-05]
[1646617939491,0.387238,38349.0,38347.0,8.451e-05]
[1646617940294,0.1,38356.0,38344.0,0.36038835]
[1646617940295,0.00303081,38359.0,38348.0,1.05]
[1646617940501,0.00303081,38359.0,38349.0,0.31078122]
[1646617940697,0.00303081,38359.0,38358.0,0.22199959]
[1646617940894,0.00303081,38359.0,38358.0,0.27389959]
[1646617941093,0.00303081,38359.0,38358.0,0.28655918]
[1646617941693,0.00303081,38359.0,38358.0,0.33839372]
[1646617942193,0.00303081,38359.0,38358.0,0.35244292]
[1646617943139,0.00303081,38359.0,38357.0,8.449e-05]
[1646617943343,0.39027881,38359.0,38357.0,8.449e-05]
[1646617943938,0.00155343,38348.0,38346.0,0.33678355]
[1646617944146,0.00155343,38348.0,38347.0,0.39633135]
[1646617944341,0.00155343,38348.0,38347.0,0.34105998]
[1646617945639,0.00155343,38348.0,38347.0,0.3943809]
[1646617945840,0.00155343,38348.0,38347.0,0.6943809]
[1646617946040,0.00155343,38348.0,38347.0,0.7204009]
[1646617946239,0.00303081,38359.0,38347.0,0.7204009]
[1646617946240,0.00303081,38359.0,38357.0,0.16449727]
[1646617946687,0.00303081,38359.0,38355.0,0.2117935]
[1646617947089,0.387248,38358.0,38355.0,0.2117935]
[1646617947486,0.00303081,38359.0,38355.0,0.27487815]
[1646617947688,0.387248,38358.0,38355.0,0.06315985]
[1646617947888,0.387248,38358.0,38355.0,7.52e-05]
[1646617948693,0.00303081,38359.0,38349.0,0.004]
[1646617948892,0.387248,38358.0,38349.0,0.004]
[1646617949091,0.387248,38358.0,38355.0,7.52e-05]
[1646617949894,0.387248,38358.0,38355.0,0.19485148]
[1646617950095,0.387248,38358.0,38355.0,0.19491906]
[1646617950339,0.387248,38358.0,38355.0,0.19484386]
[1646617951340,0.387248,38358.0,38355.0,0.19491144]
[1646617951541,0.387248,38358.0,38355.0,0.19484386]
[1646617952341,0.387248,38358.0,38355.0,0.19477628]
[1646617952542,0.387248,38358.0,38355.0,0.19484386]
[1646617953543,0.387248,38358.0,38355.0,0.19477628]
[1646617953745,0.387248,38358.0,38355.0,0.19484557]
[1646617954890,0.407248,38358.0,38355.0,0.19491486]
[1646617955293,0.407248,38358.0,38355.0,0.19484557]
[1646617955492,0.407248,38358.0,38357.0,0.00013445]
[1646617957495,0.407248,38358.0,38357.0,0.01267195]
[1646617957940,0.407248,38358.0,38357.0,0.01484957]
[1646617962785,0.02,38358.0,38357.0,0.01484957]
[1646617963089,0.003,38362.0,38359.0,0.01004]
[1646617963286,0.2769512,38370.0,38360.0,1.1019]
[1646617963287,0.21106311,38370.0,38360.0,1.1019]
[1646617963486,0.21106311,38370.0,38362.0,0.01008384]
[1646617963686,0.21106311,38370.0,38367.0,0.16308996]
[1646617963890,0.387248,38369.0,38367.0,0.17740084]
[1646617964091,0.387248,38370.0,38367.0,0.17740084]
[1646617964288,0.387248,38370.0,38367.0,0.43007543]
[1646617964588,0.387248,38371.0,38367.0,0.43007543]
[1646617964789,0.02,38370.0,38367.0,0.43007543]
[1646617965441,0.02,38370.0,38367.0,0.49526243]
[1646617965644,0.21106311,38372.0,38367.0,0.49526243]
[1646617965853,0.003,38373.0,38367.0,0.49533138]
[1646617965854,0.21406311,38373.0,38367.0,0.49533138]
[1646617966041,0.21106311,38374.0,38367.0,0.47943765]
[1646617967043,0.21106311,38374.0,38367.0,0.4795066]
[1646617967244,0.21106311,38374.0,38367.0,0.47943765]
[1646617968142,0.21106311,38374.0,38367.0,0.47950661]
[1646617968344,0.21106311,38374.0,38367.0,0.47943766]
[1646617968743,0.36206311,38375.0,38367.0,0.47943766]
[1646617969189,0.36206311,38375.0,38367.0,0.3163477]
[1646617969391,0.26125339,38373.0,38367.0,0.17893307]
[1646617969592,0.387248,38372.0,38367.0,0.17886411]
[1646617970390,0.387248,38372.0,38368.0,0.63945539]
[1646617970592,0.387248,38372.0,38369.0,0.01509043]
[1646617970791,0.387248,38372.0,38370.0,0.065188]
[1646617970991,0.387248,38372.0,38371.0,0.01098622]
[1646617971194,0.687248,38372.0,38371.0,0.01098622]
[1646617971595,0.387248,38372.0,38371.0,0.01098622]
[1646617973239,0.21706839,38374.0,38371.0,0.22911831]
[1646617973440,0.006,38374.0,38372.0,0.009869]
[1646617973846,0.2639312,38380.0,38379.0,0.21646563]
[1646617973847,0.09001031,38380.0,38379.0,0.21646563]
[1646617974041,0.44672146,38378.0,38377.0,0.05753737]
[1646617974342,0.05574746,38378.0,38377.0,0.71165255]
[1646617974940,0.02582355,38381.0,38379.0,0.387173]
[1646617975339,0.02582355,38381.0,38379.0,0.05]
[1646617975541,0.387173,38388.0,38382.0,0.26835513]
[1646617975743,0.46612345,38390.0,38384.0,0.115162]
[1646617975940,0.387173,38389.0,38384.0,0.115162]
[1646617976591,0.57891922,38392.0,38384.0,0.115162]
[1646617976592,0.15,38385.0,38384.0,0.115162]
[1646617976794,0.537173,38385.0,38384.0,0.55]
[1646617978794,0.837173,38385.0,38384.0,0.55]
[1646617978992,0.537173,38385.0,38384.0,0.55]
[1646617979892,0.537173,38385.0,38384.0,0.05]
[1646617980093,0.387173,38385.0,38384.0,0.05]
[1646617980342,0.387173,38384.0,38383.0,0.615167]
[1646617980742,0.537173,38384.0,38383.0,0.615167]
[1646617982441,0.15,38384.0,38383.0,0.615167]
[1646617984091,0.537173,38384.0,38383.0,0.615167]
[1646617984492,0.537173,38384.0,38383.0,0.635167]
[1646617984895,0.537173,38384.0,38383.0,0.63534907]
[1646617986097,0.00010632,38385.0,38384.0,0.387118]
[1646617986297,0.21089758,38390.0,38384.0,0.569309]
[1646617986497,0.15,38391.0,38384.0,0.869309]
[1646617986694,0.15,38391.0,38385.0,0.05]
[1646617986895,0.54511606,38392.0,38386.0,0.0519]
[1646617987095,0.54511606,38392.0,38386.0,0.5519]
[1646617987096,0.387173,38391.0,38386.0,0.5519]
[1646617987297,0.15,38389.0,38386.0,0.55]
[1646617987500,0.387173,38388.0,38386.0,0.55]
[1646617987695,0.387173,38388.0,38386.0,0.5]
[1646617987946,0.02602,38391.0,38386.0,0.5]
[1646617987947,0.74807058,38387.0,38386.0,0.5]
[1646617988145,0.387173,38384.0,38383.0,0.02441238]
[1646617988348,0.637173,38384.0,38383.0,0.02441238]
[1646617990547,0.637173,38384.0,38383.0,0.02423031]
[1646617991148,0.387173,38384.0,38383.0,0.02423031]
[1646617991787,0.677173,38384.0,38383.0,0.02]
[1646617991988,0.74804169,38384.0,38383.0,0.02]
[1646617992187,0.537173,38384.0,38383.0,0.02]
[1646617992387,0.387173,38384.0,38383.0,0.02]
[1646617992988,0.527173,38384.0,38383.0,0.02]
[1646617993588,0.73808584,38384.0,38383.0,0.02]
[1646617993787,0.527173,38384.0,38383.0,0.02]
[1646617993988,0.19,38378.0,38376.0,0.1955595]
[1646617994188,0.19,38378.0,38376.0,0.2455595]
[1646617994589,0.19,38378.0,38376.0,0.3107345]
[1646617994788,0.537189,38377.0,38376.0,0.05]
[1646617994988,0.15,38377.0,38376.0,0.05]
[1646617995192,0.537189,38377.0,38376.0,0.07]
[1646617996537,0.537189,38377.0,38376.0,0.05]
[1646617997141,0.387189,38377.0,38376.0,0.05]
[1646617997640,0.537189,38377.0,38376.0,0.05]
[1646617998038,0.387189,38377.0,38376.0,0.05]
[1646617998440,0.537189,38377.0,38376.0,0.05]